[Event "*** Titled Tuesday 3|2 Blitz"]
[Site "Chess.com"]
[Date "2017.05.02"]
[Round "3"]
[White "stepanosinovsky"]
[Black "1random"]
[Result "1-0"]
[WhiteElo "2226"]
[BlackElo "2281"]
[TimeControl "180+2"]
[EndTime "13:31:26 PDT"]
[Termination "stepanosinovsky won by resignation"]

1. e4 {[%clk 0:03:02]} 1... d5 {[%clk 0:03:00.6]} 2. exd5 {[%clk 0:03:02.3]}
2... Nf6 {[%clk 0:03:02.2]} 3. Bb5+ {[%clk 0:03:02.6]} 3... Nbd7 {[%clk
0:03:03.2]} 4. c4 {[%clk 0:02:50.3]} 4... a6 {[%clk 0:03:04.1]} 5. Ba4 {[%clk
0:02:50.6]} 5... b5 {[%clk 0:03:05.1]} 6. cxb5 {[%clk 0:02:49.4]} 6... Nxd5
{[%clk 0:03:06.5]} 7. Nc3 {[%clk 0:02:32.8]} 7... N5b6 {[%clk 0:03:06.7]} 8. Bb3
{[%clk 0:02:32]} 8... axb5 {[%clk 0:03:06.9]} 9. Nxb5 {[%clk 0:02:20.3]} 9...
Ba6 {[%clk 0:03:06.4]} 10. Nc3 {[%clk 0:01:32.5]} 10... g6 {[%clk 0:03:07]} 11.
Nge2 {[%clk 0:01:32.8]} 11... c5 {[%clk 0:03:05.7]} 12. O-O {[%clk 0:01:31.2]}
12... Bg7 {[%clk 0:03:06.7]} 13. Re1 {[%clk 0:01:31.1]} 13... O-O {[%clk
0:03:06.5]} 14. d4 {[%clk 0:01:31.7]} 14... cxd4 {[%clk 0:03:02.9]} 15. Nxd4
{[%clk 0:01:31.9]} 15... e5 {[%clk 0:03:00.8]} 16. Nc6 {[%clk 0:01:25]} 16...
Qc7 {[%clk 0:03:01]} 17. Qf3 {[%clk 0:01:22.4]} 17... Bb7 {[%clk 0:02:53.7]} 18.
Ne7+ {[%clk 0:01:18.7]} 18... Kh8 {[%clk 0:02:55]} 19. Ned5 {[%clk 0:00:43.6]}
19... Qd8 {[%clk 0:02:53.1]} 20. Rd1 {[%clk 0:00:40.5]} 20... Nc5 {[%clk
0:02:53.4]} 21. Be3 {[%clk 0:00:25.6]} 21... Nxb3 {[%clk 0:02:47.8]} 22. Bxb6
{[%clk 0:00:20.9]} 22... Qd6 {[%clk 0:02:35.4]} 23. axb3 {[%clk 0:00:20.5]}
23... Rxa1 {[%clk 0:02:37.3]} 24. Rxa1 {[%clk 0:00:21.3]} 24... e4 {[%clk
0:02:36.9]} 25. Qxe4 {[%clk 0:00:22.1]} 25... Bxc3 {[%clk 0:02:36.4]} 26. bxc3
{[%clk 0:00:21.9]} 26... Qxd5 {[%clk 0:02:26.1]} 27. Qxd5 {[%clk 0:00:22.1]}
27... Bxd5 {[%clk 0:02:28]} 28. c4 {[%clk 0:00:23.3]} 28... Be6 {[%clk
0:02:29.6]} 29. Rc1 {[%clk 0:00:22.5]} 29... Rb8 {[%clk 0:02:29.7]} 30. Bd4+
{[%clk 0:00:22.9]} 30... Kg8 {[%clk 0:02:31.2]} 31. Rc3 {[%clk 0:00:23.3]} 31...
Rb4 {[%clk 0:02:32.3]} 32. f3 {[%clk 0:00:24.1]} 32... Bd7 {[%clk 0:02:33]} 33.
Kf2 {[%clk 0:00:24.4]} 33... Kf8 {[%clk 0:02:33.7]} 34. Bc5+ {[%clk 0:00:25.5]}
1-0

[Event "*** Titled Tuesday 3|2 Blitz"]
[Site "Chess.com"]
[Date "2017.05.02"]
[Round "3"]
[White "TheNextLevelFan"]
[Black "PowerThinking2650"]
[Result "1-0"]
[WhiteElo "2394"]
[BlackElo "2182"]
[TimeControl "180+2"]
[EndTime "13:31:42 PDT"]
[Termination "TheNextLevelFan won by resignation"]

1. d4 {[%clk 0:03:02]} 1... Nf6 {[%clk 0:03:00.7]} 2. c4 {[%clk 0:03:03.5]} 2...
g6 {[%clk 0:03:01.9]} 3. Nc3 {[%clk 0:03:04.8]} 3... Bg7 {[%clk 0:03:02.8]} 4.
g3 {[%clk 0:03:05.9]} 4... O-O {[%clk 0:03:03.8]} 5. Bg2 {[%clk 0:03:07.5]} 5...
d6 {[%clk 0:03:05.3]} 6. Nf3 {[%clk 0:03:08.7]} 6... Nbd7 {[%clk 0:03:06.9]} 7.
O-O {[%clk 0:03:09.7]} 7... e5 {[%clk 0:03:08.4]} 8. e4 {[%clk 0:03:10.6]} 8...
exd4 {[%clk 0:03:09]} 9. Nxd4 {[%clk 0:03:11.4]} 9... Re8 {[%clk 0:03:10.6]} 10.
Re1 {[%clk 0:03:12.1]} 10... Nc5 {[%clk 0:03:10.8]} 11. h3 {[%clk 0:03:13.3]}
11... a5 {[%clk 0:03:10.6]} 12. b3 {[%clk 0:03:12.7]} 12... Bd7 {[%clk
0:03:10.3]} 13. Bb2 {[%clk 0:03:11.9]} 13... Qc8 {[%clk 0:03:10.8]} 14. Kh2
{[%clk 0:03:13.2]} 14... Re5 {[%clk 0:03:06.5]} 15. g4 {[%clk 0:03:10.7]} 15...
h5 {[%clk 0:03:03.4]} 16. f4 {[%clk 0:03:06.1]} 16... Re8 {[%clk 0:02:43.8]} 17.
g5 {[%clk 0:03:06.7]} 17... Nh7 {[%clk 0:02:43.4]} 18. Nd5 {[%clk 0:03:00.2]}
18... Qd8 {[%clk 0:02:24.4]} 19. Qd2 {[%clk 0:02:53.5]} 19... Ne6 {[%clk
0:02:17.4]} 20. Ne2 {[%clk 0:02:33.5]} 20... a4 {[%clk 0:01:54.5]} 21. Bxg7
{[%clk 0:02:33.1]} 21... Kxg7 {[%clk 0:01:55.2]} 22. b4 {[%clk 0:02:33.5]} 22...
b5 {[%clk 0:01:48.8]} 23. h4 {[%clk 0:02:18]} 23... bxc4 {[%clk 0:01:34.2]} 24.
f5 {[%clk 0:02:18.1]} 24... Nexg5 {[%clk 0:01:25.5]} 25. hxg5 {[%clk 0:02:17.6]}
25... gxf5 {[%clk 0:00:52.6]} 26. Ng3 {[%clk 0:02:11.2]} 26... c6 {[%clk
0:00:48.1]} 27. Nxh5+ {[%clk 0:02:08.9]} 27... Kf8 {[%clk 0:00:41.6]} 28. Ndf6
{[%clk 0:02:05.5]} 28... Nxf6 {[%clk 0:00:33.5]} 29. gxf6 {[%clk 0:02:05.9]} 1-0

[Event "*** Titled Tuesday 3|2 Blitz"]
[Site "Chess.com"]
[Date "2017.05.02"]
[Round "3"]
[White "heartofatiger"]
[Black "Yaacovn"]
[Result "1-0"]
[WhiteElo "1711"]
[BlackElo "2541"]
[TimeControl "180+2"]
[EndTime "13:32:19 PDT"]
[Termination "heartofatiger won on time"]

1. d4 {[%clk 0:03:02]} 1... Nf6 {[%clk 0:02:31.7]} 2. Nf3 {[%clk 0:03:01.2]}
2... e6 {[%clk 0:02:30.4]} 3. c4 {[%clk 0:03:01.7]} 3... Bb4+ {[%clk 0:02:13.1]}
4. Nbd2 {[%clk 0:03:01.4]} 4... d5 {[%clk 0:01:34.9]} 5. Qa4+ {[%clk 0:03:01.2]}
5... Nc6 {[%clk 0:01:29.2]} 6. e3 {[%clk 0:02:57.1]} 6... Bd7 {[%clk 0:01:29.1]}
7. Qc2 {[%clk 0:02:57.3]} 7... O-O {[%clk 0:01:29]} 8. a3 {[%clk 0:02:57.4]}
8... Bd6 {[%clk 0:01:28.5]} 9. Bd3 {[%clk 0:02:55.7]} 9... e5 {[%clk 0:01:28.5]}
10. cxd5 {[%clk 0:02:56]} 10... Nxd5 {[%clk 0:01:24.3]} 11. Bxh7+ {[%clk
0:02:56.2]} 11... Kh8 {[%clk 0:01:24.9]} 12. Be4 {[%clk 0:02:56.4]} 12... Be6
{[%clk 0:01:16.6]} 13. dxe5 {[%clk 0:02:53.8]} 13... Nxe5 {[%clk 0:01:16.9]} 14.
Nxe5 {[%clk 0:02:54.9]} 14... Bxe5 {[%clk 0:01:16]} 15. Nf3 {[%clk 0:02:56]}
15... Bf6 {[%clk 0:01:16.5]} 16. O-O {[%clk 0:02:55.8]} 16... c6 {[%clk
0:01:15.8]} 17. Bf5 {[%clk 0:02:54.1]} 17... Qd7 {[%clk 0:01:06.3]} 18. Bxe6
{[%clk 0:02:54.9]} 18... Qxe6 {[%clk 0:01:05.3]} 19. e4 {[%clk 0:02:53.4]} 19...
Nb6 {[%clk 0:01:02.8]} 20. Bf4 {[%clk 0:02:41.7]} 20... Rfe8 {[%clk 0:01:02.2]}
21. Rfe1 {[%clk 0:02:42]} 21... Qc4 {[%clk 0:01:02.7]} 22. Rac1 {[%clk
0:02:33.1]} 22... Qxc2 {[%clk 0:01:00.3]} 23. Rxc2 {[%clk 0:02:34.2]} 23... Rad8
{[%clk 0:01:00.6]} 24. g3 {[%clk 0:02:31.3]} 24... Rd3 {[%clk 0:00:59.7]} 25.
Kg2 {[%clk 0:02:32.1]} 25... Rb3 {[%clk 0:01:00.5]} 26. e5 {[%clk 0:02:31.5]}
26... Be7 {[%clk 0:01:00.6]} 27. Nd2 {[%clk 0:02:25]} 27... Rd3 {[%clk
0:01:00.1]} 28. Nc4 {[%clk 0:02:22.7]} 28... Nd5 {[%clk 0:00:58.2]} 29. Bc1
{[%clk 0:02:20.2]} 29... Rd8 {[%clk 0:00:54.6]} 30. Ne3 {[%clk 0:02:14.7]} 30...
Nb6 {[%clk 0:00:51.6]} 31. Nf5 {[%clk 0:02:15.3]} 1-0

[Event "*** Titled Tuesday 3|2 Blitz"]
[Site "Chess.com"]
[Date "2017.05.02"]
[Round "3"]
[White "TheLancer"]
[Black "Konavets"]
[Result "0-1"]
[WhiteElo "2440"]
[BlackElo "2681"]
[TimeControl "180+2"]
[EndTime "13:32:21 PDT"]
[Termination "Konavets won by resignation"]

1. e4 {[%clk 0:03:02]} 1... c5 {[%clk 0:03:00.3]} 2. Nc3 {[%clk 0:03:02.9]} 2...
d6 {[%clk 0:03:02.2]} 3. f4 {[%clk 0:03:04.2]} 3... g6 {[%clk 0:03:03.5]} 4. Nf3
{[%clk 0:03:05.8]} 4... Bg7 {[%clk 0:03:05.1]} 5. Bc4 {[%clk 0:03:07.5]} 5...
Nc6 {[%clk 0:03:07]} 6. f5 {[%clk 0:03:08.7]} 6... Nf6 {[%clk 0:03:05.6]} 7. O-O
{[%clk 0:03:09.8]} 7... O-O {[%clk 0:03:06.3]} 8. fxg6 {[%clk 0:03:11.4]} 8...
hxg6 {[%clk 0:03:07.1]} 9. h3 {[%clk 0:03:11.9]} 9... a6 {[%clk 0:03:07.8]} 10.
a4 {[%clk 0:03:12.6]} 10... Rb8 {[%clk 0:03:07]} 11. d3 {[%clk 0:03:13.7]} 11...
Nd4 {[%clk 0:03:08.4]} 12. Nxd4 {[%clk 0:03:14.5]} 12... cxd4 {[%clk 0:03:10.3]}
13. Ne2 {[%clk 0:03:16.3]} 13... b5 {[%clk 0:03:11.5]} 14. axb5 {[%clk
0:03:18.2]} 14... axb5 {[%clk 0:03:13.4]} 15. Bb3 {[%clk 0:03:19.9]} 15... e6
{[%clk 0:03:14.7]} 16. Bg5 {[%clk 0:03:14.9]} 16... b4 {[%clk 0:03:04.1]} 17.
Qe1 {[%clk 0:03:14.5]} 17... Rb5 {[%clk 0:03:04]} 18. Qh4 {[%clk 0:03:12.3]}
18... Rxg5 {[%clk 0:03:05.1]} 19. Qxg5 {[%clk 0:03:14.2]} 19... Nd7 {[%clk
0:03:00.7]} 20. Qxd8 {[%clk 0:03:10.4]} 20... Rxd8 {[%clk 0:03:02.6]} 21. Ra8
{[%clk 0:03:08.9]} 21... Nc5 {[%clk 0:03:01.3]} 22. Bc4 {[%clk 0:03:05.4]} 22...
Bh6 {[%clk 0:03:02.2]} 23. Rfa1 {[%clk 0:02:58.7]} 23... Be3+ {[%clk 0:02:59]}
24. Kf1 {[%clk 0:02:52]} 24... f5 {[%clk 0:02:59.9]} 25. exf5 {[%clk 0:02:41]}
25... gxf5 {[%clk 0:03:00.6]} 26. R1a5 {[%clk 0:02:39.4]} 26... Kf7 {[%clk
0:02:49.5]} 27. Rxc5 {[%clk 0:02:15.3]} 27... dxc5 {[%clk 0:02:50]} 28. Ba6
{[%clk 0:02:16.4]} 28... Bxa6 {[%clk 0:02:51.7]} 29. Rxd8 {[%clk 0:02:17.8]}
29... b3 {[%clk 0:02:53.6]} 30. Ra8 {[%clk 0:02:06.4]} 30... Bb5 {[%clk
0:02:03.4]} 31. Rb8 {[%clk 0:02:06.1]} 31... bxc2 {[%clk 0:02:04.8]} 32. Rxb5
{[%clk 0:02:06.6]} 32... c4 {[%clk 0:02:06.4]} 33. Rb7+ {[%clk 0:00:16.6]} 33...
Kf6 {[%clk 0:02:06.6]} 34. Nc1 {[%clk 0:00:15.3]} 34... Bxc1 {[%clk 0:02:05.5]}
35. Rc7 {[%clk 0:00:10.6]} 35... c3 {[%clk 0:02:03.3]} 36. bxc3 {[%clk
0:00:10.2]} 36... Bf4 {[%clk 0:02:04.9]} 0-1

[Event "*** Titled Tuesday 3|2 Blitz"]
[Site "Chess.com"]
[Date "2017.05.02"]
[Round "3"]
[White "Noukii"]
[Black "johnathan113"]
[Result "1-0"]
[WhiteElo "2642"]
[BlackElo "2438"]
[TimeControl "180+2"]
[EndTime "13:32:41 PDT"]
[Termination "Noukii won by resignation"]

1. d4 {[%clk 0:03:02]} 1... Nf6 {[%clk 0:02:58.5]} 2. c4 {[%clk 0:03:02.1]} 2...
g6 {[%clk 0:02:59.7]} 3. Nc3 {[%clk 0:03:03]} 3... Bg7 {[%clk 0:03:01.2]} 4. Nf3
{[%clk 0:03:03.2]} 4... O-O {[%clk 0:03:03.1]} 5. Bg5 {[%clk 0:03:04.6]} 5... d6
{[%clk 0:03:02.7]} 6. e3 {[%clk 0:03:05.2]} 6... h6 {[%clk 0:03:02]} 7. Bh4
{[%clk 0:03:06]} 7... Nbd7 {[%clk 0:03:03.3]} 8. Be2 {[%clk 0:03:06.4]} 8... e5
{[%clk 0:03:03.6]} 9. O-O {[%clk 0:03:07.2]} 9... g5 {[%clk 0:02:58.2]} 10. Bg3
{[%clk 0:03:08.2]} 10... Nh5 {[%clk 0:03:00.1]} 11. dxe5 {[%clk 0:03:09.6]}
11... Nxg3 {[%clk 0:03:02]} 12. hxg3 {[%clk 0:03:10.5]} 12... dxe5 {[%clk
0:02:56.5]} 13. g4 {[%clk 0:02:56.5]} 13... c6 {[%clk 0:02:56.6]} 14. Qc2 {[%clk
0:02:50.8]} 14... Qe7 {[%clk 0:02:55.5]} 15. Ne4 {[%clk 0:02:43.2]} 15... Nc5
{[%clk 0:02:26.2]} 16. Nxc5 {[%clk 0:02:40]} 16... Qxc5 {[%clk 0:02:25.5]} 17.
Nd2 {[%clk 0:02:41.7]} 17... f5 {[%clk 0:02:25.3]} 18. gxf5 {[%clk 0:02:42.3]}
18... Bxf5 {[%clk 0:02:27.2]} 19. Bd3 {[%clk 0:02:43]} 19... Bxd3 {[%clk
0:02:04.2]} 20. Qxd3 {[%clk 0:02:44.9]} 20... Rad8 {[%clk 0:02:06.1]} 21. Qc2
{[%clk 0:02:38.4]} 21... e4 {[%clk 0:02:05.3]} 22. Nxe4 {[%clk 0:02:37.1]} 22...
Qe5 {[%clk 0:02:02.2]} 23. Rad1 {[%clk 0:02:32.5]} 23... Rde8 {[%clk 0:01:54.6]}
24. Nd6 {[%clk 0:02:29.1]} 24... Re7 {[%clk 0:01:48.7]} 25. b4 {[%clk 0:02:25]}
25... g4 {[%clk 0:01:37.6]} 26. g3 {[%clk 0:02:17.3]} 26... h5 {[%clk
0:01:30.1]} 27. c5 {[%clk 0:02:18]} 27... Rf3 {[%clk 0:01:22.7]} 28. Kg2 {[%clk
0:02:12.3]} 28... h4 {[%clk 0:00:57.6]} 29. Qc4+ {[%clk 0:02:10.9]} 29... Qe6
{[%clk 0:00:57.9]} 30. Qxe6+ {[%clk 0:02:11.7]} 30... Rxe6 {[%clk 0:00:59.8]}
31. gxh4 {[%clk 0:02:12.3]} 31... Rh6 {[%clk 0:00:58]} 32. Nxb7 {[%clk
0:01:47.3]} 32... Rxh4 {[%clk 0:00:56.5]} 33. Rh1 {[%clk 0:01:35]} 33... Rfh3
{[%clk 0:00:49.6]} 34. Nd8 {[%clk 0:01:34.3]} 34... Be5 {[%clk 0:00:39.4]} 35.
Nxc6 {[%clk 0:01:33.9]} 1-0

[Event "*** Titled Tuesday 3|2 Blitz"]
[Site "Chess.com"]
[Date "2017.05.02"]
[Round "3"]
[White "NewBornNow"]
[Black "AkshatChandra"]
[Result "1/2-1/2"]
[WhiteElo "2551"]
[BlackElo "2751"]
[TimeControl "180+2"]
[EndTime "13:33:01 PDT"]
[Termination "Game drawn by repetition"]

1. e4 {[%clk 0:02:58.5]} 1... e6 {[%clk 0:02:58.9]} 2. d4 {[%clk 0:02:58.7]}
2... d5 {[%clk 0:03:00.5]} 3. Nc3 {[%clk 0:02:59.7]} 3... Nf6 {[%clk 0:03:01.2]}
4. Bg5 {[%clk 0:02:58.6]} 4... dxe4 {[%clk 0:03:02.2]} 5. Nxe4 {[%clk
0:02:58.9]} 5... Be7 {[%clk 0:03:03.5]} 6. Bxf6 {[%clk 0:03:00]} 6... gxf6
{[%clk 0:03:05]} 7. Qd2 {[%clk 0:03:00]} 7... f5 {[%clk 0:03:05.2]} 8. Nc3
{[%clk 0:03:00.5]} 8... a6 {[%clk 0:03:06.5]} 9. O-O-O {[%clk 0:03:00.9]} 9...
Qd6 {[%clk 0:03:08.1]} 10. g3 {[%clk 0:03:00.7]} 10... b5 {[%clk 0:03:00]} 11.
Bg2 {[%clk 0:03:01.5]} 11... c6 {[%clk 0:03:01.4]} 12. Nf3 {[%clk 0:03:01.2]}
12... Nd7 {[%clk 0:03:00.4]} 13. Ne5 {[%clk 0:02:58.7]} 13... Bb7 {[%clk
0:02:51.2]} 14. Qf4 {[%clk 0:02:51.3]} 14... Rg8 {[%clk 0:02:42]} 15. Kb1 {[%clk
0:02:41.1]} 15... Nf6 {[%clk 0:02:16.4]} 16. Rhe1 {[%clk 0:02:33.6]} 16... O-O-O
{[%clk 0:01:59.3]} 17. Qf3 {[%clk 0:02:24.7]} 17... Rgf8 {[%clk 0:01:15.5]} 18.
Nxc6 {[%clk 0:02:23.5]} 18... Bxc6 {[%clk 0:01:16.8]} 19. Qxc6+ {[%clk
0:02:24.1]} 19... Qxc6 {[%clk 0:01:18.2]} 20. Bxc6 {[%clk 0:02:24.8]} 20... Kc7
{[%clk 0:01:12.1]} 21. Bf3 {[%clk 0:02:24.4]} 21... Bb4 {[%clk 0:01:12.2]} 22.
Re3 {[%clk 0:02:25.2]} 22... Kb6 {[%clk 0:01:07]} 23. Ne2 {[%clk 0:02:24.4]}
23... Bd6 {[%clk 0:01:07.3]} 24. c3 {[%clk 0:02:22.7]} 24... h5 {[%clk
0:01:04.5]} 25. Kc2 {[%clk 0:02:12.6]} 25... Ng4 {[%clk 0:01:05.2]} 26. Bxg4
{[%clk 0:02:12.7]} 26... hxg4 {[%clk 0:01:07.1]} 27. Rh1 {[%clk 0:02:01.5]}
27... Rh8 {[%clk 0:01:06.9]} 28. f3 {[%clk 0:02:00.9]} 28... gxf3 {[%clk
0:01:04.4]} 29. Rxf3 {[%clk 0:02:01.9]} 29... Rh7 {[%clk 0:01:00.3]} 30. h4
{[%clk 0:01:53.7]} 30... Rg8 {[%clk 0:01:01.1]} 31. Rd1 {[%clk 0:01:52.5]} 31...
Rg4 {[%clk 0:00:55.8]} 32. d5 {[%clk 0:01:51.5]} 32... Kc7 {[%clk 0:00:52.8]}
33. dxe6 {[%clk 0:01:52.1]} 33... fxe6 {[%clk 0:00:54.7]} 34. Nd4 {[%clk
0:01:51]} 34... Rh6 {[%clk 0:00:53.6]} 35. Rdd3 {[%clk 0:01:47.5]} 35... Rhg6
{[%clk 0:00:46.5]} 36. Ne2 {[%clk 0:01:46]} 36... Kd7 {[%clk 0:00:43.6]} 37. b4
{[%clk 0:01:44.7]} 37... Ke7 {[%clk 0:00:44.2]} 38. Kb3 {[%clk 0:01:45.1]} 38...
Be5 {[%clk 0:00:41.4]} 39. a4 {[%clk 0:01:44.1]} 39... Rg8 {[%clk 0:00:37.2]}
40. axb5 {[%clk 0:01:44.1]} 40... axb5 {[%clk 0:00:39.1]} 41. Rfe3 {[%clk
0:01:37.2]} 41... Kf6 {[%clk 0:00:40.2]} 42. Rf3 {[%clk 0:01:32.3]} 42... Ke7
{[%clk 0:00:40.6]} 43. Rde3 {[%clk 0:01:31.8]} 43... Kf6 {[%clk 0:00:38.7]} 44.
Rd3 {[%clk 0:01:32.1]} 44... Ke7 {[%clk 0:00:39.2]} 1/2-1/2

[Event "*** Titled Tuesday 3|2 Blitz"]
[Site "Chess.com"]
[Date "2017.05.02"]
[Round "3"]
[White "Iball95"]
[Black "SCIM"]
[Result "1-0"]
[WhiteElo "2506"]
[BlackElo "2380"]
[TimeControl "180+2"]
[EndTime "13:33:17 PDT"]
[Termination "Iball95 won by checkmate"]

1. e4 {[%clk 0:03:02]} 1... c5 {[%clk 0:02:59.3]} 2. Nf3 {[%clk 0:03:03.4]} 2...
e6 {[%clk 0:03:00.5]} 3. d4 {[%clk 0:03:04.9]} 3... cxd4 {[%clk 0:03:01.8]} 4.
Nxd4 {[%clk 0:03:06.8]} 4... Nc6 {[%clk 0:03:03]} 5. Nc3 {[%clk 0:03:07.3]} 5...
Qc7 {[%clk 0:03:04.5]} 6. Be3 {[%clk 0:03:05.5]} 6... a6 {[%clk 0:03:05]} 7. Qf3
{[%clk 0:03:06]} 7... Nf6 {[%clk 0:02:55.8]} 8. O-O-O {[%clk 0:02:58.5]} 8...
Ne5 {[%clk 0:02:55.8]} 9. Qg3 {[%clk 0:02:59.1]} 9... b5 {[%clk 0:02:56.1]} 10.
f4 {[%clk 0:02:23.6]} 10... Neg4 {[%clk 0:02:54.8]} 11. Bg1 {[%clk 0:02:24.7]}
11... b4 {[%clk 0:02:55.7]} 12. Na4 {[%clk 0:02:23.9]} 12... Bb7 {[%clk
0:02:53.7]} 13. e5 {[%clk 0:02:22.8]} 13... Qa5 {[%clk 0:02:38.8]} 14. b3 {[%clk
0:02:18.4]} 14... Ne4 {[%clk 0:02:35]} 15. Qxg4 {[%clk 0:02:15.6]} 15... Nc3
{[%clk 0:02:35.5]} 16. Rd3 {[%clk 0:01:22.7]} 16... Rc8 {[%clk 0:02:18.1]} 17.
Nxc3 {[%clk 0:01:21.4]} 17... Qa3+ {[%clk 0:02:12.3]} 18. Kd1 {[%clk 0:01:18.2]}
18... bxc3 {[%clk 0:02:12.7]} 19. Be3 {[%clk 0:01:18.4]} 19... Be4 {[%clk
0:02:07.8]} 20. f5 {[%clk 0:01:14.1]} 20... Bxd3 {[%clk 0:01:54.8]} 21. Bxd3
{[%clk 0:01:14.4]} 21... Qxa2 {[%clk 0:01:42.4]} 22. fxe6 {[%clk 0:01:05.9]}
22... dxe6 {[%clk 0:01:42.7]} 23. Rf1 {[%clk 0:00:39.6]} 23... Bc5 {[%clk
0:01:24.9]} 24. Nxe6 {[%clk 0:00:25.4]} 24... Bxe3 {[%clk 0:01:17.8]} 25. Qxg7
{[%clk 0:00:19.7]} 25... Ke7 {[%clk 0:00:22.4]} 26. Qxf7# {[%clk 0:00:19.3]} 1-0

[Event "*** Titled Tuesday 3|2 Blitz"]
[Site "Chess.com"]
[Date "2017.05.02"]
[Round "3"]
[White "Rikikits"]
[Black "GMAkobianSTL"]
[Result "0-1"]
[WhiteElo "2571"]
[BlackElo "2611"]
[TimeControl "180+2"]
[EndTime "13:33:19 PDT"]
[Termination "GMAkobianSTL won by resignation"]

1. e4 {[%clk 0:03:02]} 1... d6 {[%clk 0:03:00.5]} 2. d4 {[%clk 0:03:03]} 2...
Nf6 {[%clk 0:03:01.3]} 3. Nc3 {[%clk 0:03:04.5]} 3... c6 {[%clk 0:03:02.2]} 4.
f3 {[%clk 0:03:05.9]} 4... Nbd7 {[%clk 0:02:59.6]} 5. Be3 {[%clk 0:03:06.7]}
5... Qb6 {[%clk 0:02:58.4]} 6. Rb1 {[%clk 0:02:55.7]} 6... e5 {[%clk 0:02:56.4]}
7. Qd2 {[%clk 0:02:55.5]} 7... Qc7 {[%clk 0:02:57.2]} 8. Nge2 {[%clk 0:02:53.5]}
8... b5 {[%clk 0:02:51.3]} 9. Nd1 {[%clk 0:02:47.9]} 9... d5 {[%clk 0:02:49.3]}
10. Nf2 {[%clk 0:02:33.2]} 10... dxe4 {[%clk 0:02:45.7]} 11. fxe4 {[%clk
0:02:35.1]} 11... exd4 {[%clk 0:02:45.1]} 12. Nxd4 {[%clk 0:02:37]} 12... Ne5
{[%clk 0:02:43.6]} 13. Be2 {[%clk 0:02:35.5]} 13... a6 {[%clk 0:02:25]} 14. O-O
{[%clk 0:02:33.3]} 14... c5 {[%clk 0:02:12.9]} 15. Nf5 {[%clk 0:02:33.2]} 15...
Bxf5 {[%clk 0:02:13.1]} 16. exf5 {[%clk 0:02:35.1]} 16... Rd8 {[%clk 0:02:13.3]}
17. Qe1 {[%clk 0:02:30.8]} 17... Bd6 {[%clk 0:02:13.9]} 18. Bg5 {[%clk
0:02:26.9]} 18... Be7 {[%clk 0:02:03]} 19. Nd3 {[%clk 0:01:59.1]} 19... Nxd3
{[%clk 0:01:53.6]} 20. Bxd3 {[%clk 0:02:00.1]} 20... O-O {[%clk 0:01:54.2]} 21.
Qh4 {[%clk 0:01:57.8]} 21... Rd4 {[%clk 0:01:52.5]} 22. Rf4 {[%clk 0:01:52.9]}
22... Rfd8 {[%clk 0:01:52]} 23. Rbf1 {[%clk 0:01:00.2]} 23... h6 {[%clk
0:01:46.8]} 24. Rxd4 {[%clk 0:01:01.1]} 24... Rxd4 {[%clk 0:01:44.2]} 25. Bf4
{[%clk 0:01:02.4]} 25... Bd6 {[%clk 0:01:39.7]} 26. Bxd6 {[%clk 0:01:00.8]}
26... Qxd6 {[%clk 0:01:40.3]} 27. Qe1 {[%clk 0:00:54.2]} 27... c4 {[%clk
0:01:32.9]} 28. Be2 {[%clk 0:00:54.9]} 28... Re4 {[%clk 0:00:48.3]} 29. Qd1
{[%clk 0:00:51.2]} 29... Qc5+ {[%clk 0:00:47.9]} 30. Kh1 {[%clk 0:00:52.1]}
30... Re5 {[%clk 0:00:40.6]} 31. b3 {[%clk 0:00:47.2]} 31... Ne4 {[%clk
0:00:35.7]} 32. Qe1 {[%clk 0:00:39.9]} 32... cxb3 {[%clk 0:00:36.6]} 33. cxb3
{[%clk 0:00:36.4]} 33... Nc3 {[%clk 0:00:37.4]} 34. Rf2 {[%clk 0:00:36.1]} 34...
Nxe2 {[%clk 0:00:34.3]} 0-1

[Event "*** Titled Tuesday 3|2 Blitz"]
[Site "Chess.com"]
[Date "2017.05.02"]
[Round "3"]
[White "bilelou"]
[Black "JusticeBot"]
[Result "1-0"]
[WhiteElo "2397"]
[BlackElo "2503"]
[TimeControl "180+2"]
[EndTime "13:33:22 PDT"]
[Termination "bilelou won by checkmate"]

1. e4 {[%clk 0:03:02]} 1... e5 {[%clk 0:03:01.2]} 2. Qh5 {[%clk 0:02:55.3]} 2...
Nc6 {[%clk 0:03:00.2]} 3. Bc4 {[%clk 0:02:55.6]} 3... g6 {[%clk 0:03:01.5]} 4.
Qf3 {[%clk 0:02:56.1]} 4... Nf6 {[%clk 0:03:02.7]} 5. Ne2 {[%clk 0:02:56.4]}
5... Bg7 {[%clk 0:02:59.8]} 6. d3 {[%clk 0:02:55.6]} 6... h6 {[%clk 0:02:55]} 7.
h3 {[%clk 0:02:56.8]} 7... d6 {[%clk 0:02:52.4]} 8. Nbc3 {[%clk 0:02:57.2]} 8...
Nb4 {[%clk 0:02:37.6]} 9. Bb3 {[%clk 0:02:57.2]} 9... Be6 {[%clk 0:02:38.8]} 10.
Ba4+ {[%clk 0:02:48.5]} 10... c6 {[%clk 0:02:38.8]} 11. a3 {[%clk 0:02:48.9]}
11... Na6 {[%clk 0:02:39.8]} 12. b4 {[%clk 0:02:47.5]} 12... b5 {[%clk
0:02:36.9]} 13. Nxb5 {[%clk 0:02:43.1]} 13... cxb5 {[%clk 0:01:22.3]} 14. Bxb5+
{[%clk 0:02:42.2]} 14... Nd7 {[%clk 0:01:24.2]} 15. Bxa6 {[%clk 0:02:40.4]}
15... Qb6 {[%clk 0:01:25.6]} 16. Bc4 {[%clk 0:02:40]} 16... Bxc4 {[%clk
0:01:27.3]} 17. dxc4 {[%clk 0:02:40.9]} 17... Rc8 {[%clk 0:01:29.1]} 18. Qd3
{[%clk 0:02:38]} 18... Qc6 {[%clk 0:01:29.8]} 19. c5 {[%clk 0:02:02.9]} 19...
dxc5 {[%clk 0:01:30]} 20. b5 {[%clk 0:02:02.9]} 20... Qb7 {[%clk 0:01:20.2]} 21.
c4 {[%clk 0:02:02.8]} 21... f5 {[%clk 0:01:10.1]} 22. Nc3 {[%clk 0:01:59.6]}
22... Nf6 {[%clk 0:01:04.4]} 23. O-O {[%clk 0:01:58.2]} 23... fxe4 {[%clk
0:01:01.9]} 24. Qe2 {[%clk 0:01:58.5]} 24... O-O {[%clk 0:00:30.3]} 25. Re1
{[%clk 0:01:58.2]} 25... Rcd8 {[%clk 0:00:31.9]} 26. Bb2 {[%clk 0:01:50.1]}
26... Rd3 {[%clk 0:00:28.4]} 27. Rac1 {[%clk 0:01:33.2]} 27... Rfd8 {[%clk
0:00:27.8]} 28. Rc2 {[%clk 0:01:34]} 28... Qf7 {[%clk 0:00:26.9]} 29. Nxe4
{[%clk 0:01:31.3]} 29... Nxe4 {[%clk 0:00:28.2]} 30. Qxe4 {[%clk 0:01:31.7]}
30... Rd2 {[%clk 0:00:30.1]} 31. Rxd2 {[%clk 0:01:19.5]} 31... Rxd2 {[%clk
0:00:32]} 32. Re2 {[%clk 0:01:20.6]} 32... Rd1+ {[%clk 0:00:33.6]} 33. Kh2
{[%clk 0:01:21.4]} 33... Kh7 {[%clk 0:00:20.5]} 34. Bxe5 {[%clk 0:01:20.8]}
34... Bxe5+ {[%clk 0:00:17.8]} 35. Qxe5 {[%clk 0:01:22]} 35... Qxc4 {[%clk
0:00:17.7]} 36. Qc7+ {[%clk 0:01:21]} 36... Kg8 {[%clk 0:00:18.2]} 37. Re8#
{[%clk 0:01:21.7]} 1-0